bitfinex/quotes_BTCUSD_20260221
["timestamp","ask_amount","ask_price","bid_price","bid_amount"]
[1771707860378,0.0002,68313.0,68306.0,0.07319986]
[1771707861601,0.0002,68313.0,68311.0,0.07319371]
[1771707861801,0.04341314,68314.0,68311.0,0.07319371]
[1771707862444,0.04341314,68314.0,68312.0,0.07319342]
[1771707864570,0.04343765,68319.0,68305.0,0.00022]
[1771707864764,0.05703389,68317.0,68312.0,0.07319328]
[1771707864965,0.07334578,68320.0,68312.0,0.07319328]
[1771707864966,0.05703389,68316.0,68312.0,0.07319328]
[1771707865282,0.01359624,68315.0,68312.0,0.07319328]
[1771707865501,0.0002,68314.0,68311.0,0.07319448]
[1771707868254,0.07318633,68319.0,68311.0,0.07319448]
[1771707868544,0.01359596,68317.0,68312.0,0.07319354]
[1771707868756,0.01359596,68316.0,68312.0,0.07319354]
[1771707868908,0.04364308,68318.0,68312.0,0.07319354]
[1771707869102,0.04346318,68316.0,68312.0,0.07319354]
[1771707869325,0.01359633,68315.0,68312.0,0.07319354]
[1771707869497,0.04346318,68316.0,68312.0,0.07319354]
[1771707869699,0.01359664,68315.0,68312.0,0.07319354]
[1771707869898,0.04446318,68316.0,68312.0,0.07319354]
[1771707870255,0.01359723,68315.0,68312.0,0.07319354]
[1771707870426,0.0001799,68318.0,68313.0,0.07319243]
[1771707870607,0.0001799,68318.0,68315.0,0.07318963]
[1771707870805,0.0001799,68318.0,68314.0,0.07318963]
[1771707871147,0.0001799,68318.0,68312.0,0.07319293]
[1771707871385,0.0001799,68318.0,68307.0,0.00022]
[1771707871386,0.00016,68320.0,68314.0,0.0731907]
[1771707871595,0.00016,68320.0,68313.0,0.0731907]
[1771707871734,0.00016,68320.0,68314.0,0.07319143]
[1771707873828,0.00016,68320.0,68313.0,0.0731907]
[1771707873992,0.07298373,68321.0,68313.0,0.0731907]
[1771707875799,0.00012,68329.0,68310.0,0.00796068]
[1771707876102,0.00012,68329.0,68310.0,0.00016]
[1771707876103,0.04344317,68323.0,68310.0,0.00016]
[1771707876310,0.04344317,68323.0,68312.0,0.29277202]
[1771707876806,0.04344317,68323.0,68317.0,0.07318735]
[1771707876969,0.04344317,68323.0,68318.0,0.07318692]
[1771707877707,0.07335695,68328.0,68319.0,0.07318521]
[1771707878088,0.07317858,68326.0,68319.0,0.07318521]
[1771707878273,0.07335695,68328.0,68316.0,0.07318857]
[1771707878274,0.04343676,68327.0,68316.0,0.07318859]
[1771707878474,0.11661723,68325.0,68317.0,0.07318784]
[1771707879733,0.06661723,68325.0,68318.0,0.07318695]
[1771707880466,0.06661723,68325.0,68314.0,0.26010867]
[1771707880467,0.0002,68325.0,68314.0,0.26010867]
[1771707880653,0.0001799,68328.0,68314.0,0.26010867]
[1771707880654,0.0001799,68328.0,68322.0,0.07318257]
[1771707880819,0.07335669,68328.0,68319.0,0.07318537]
[1771707881030,0.04365054,68328.0,68321.0,0.0731836]
[1771707881198,0.11682699,68328.0,68321.0,0.0731836]
[1771707882762,0.11682699,68328.0,68320.0,0.07318481]
[1771707886741,0.11682699,68328.0,68321.0,0.07318388]
[1771707886937,0.11702699,68328.0,68321.0,0.07318388]
[1771707890078,0.11702699,68328.0,68320.0,0.07318473]
[1771707891086,0.07317756,68327.0,68320.0,0.07318473]
[1771707892255,0.0003799,68328.0,68315.0,0.07318958]
[1771707892457,0.04343145,68319.0,68313.0,0.07341231]
[1771707894630,0.07318418,68321.0,68314.0,0.07319139]
[1771707896859,0.07317762,68327.0,68320.0,0.0731848]
[1771707897059,0.01359221,68326.0,68320.0,0.0731848]
[1771707897267,0.07317762,68327.0,68320.0,0.0731848]
[1771707897444,0.01359387,68326.0,68320.0,0.0731848]
[1771707897626,0.07317762,68327.0,68320.0,0.0731848]
[1771707897829,0.01359388,68326.0,68320.0,0.0731848]
[1771707898033,0.07317762,68327.0,68320.0,0.0731848]
[1771707898240,0.01359388,68326.0,68320.0,0.0731848]
[1771707898570,0.07317762,68327.0,68320.0,0.0731848]
[1771707898805,0.01359577,68326.0,68320.0,0.0731848]
[1771707898925,0.07317762,68327.0,68320.0,0.0731848]
[1771707899129,0.07337846,68328.0,68318.0,0.07318691]
[1771707899130,0.07317974,68325.0,68318.0,0.07318687]
[1771707899952,0.04340783,68327.0,68318.0,0.07318687]
[1771707900281,0.13018518,68326.0,68319.0,0.07318599]
[1771707900477,0.04340783,68324.0,68320.0,0.07318478]
[1771707900676,0.07317953,68327.0,68320.0,0.07318478]
[1771707900896,0.01359972,68326.0,68320.0,0.07318478]
[1771707901116,0.01359972,68325.0,68319.0,0.07318411]
[1771707901266,0.07317953,68327.0,68319.0,0.07318411]
[1771707901480,0.01360161,68326.0,68320.0,0.00022]
[1771707901687,0.01360161,68325.0,68320.0,0.00022]
[1771707901873,0.07317943,68326.0,68320.0,0.00022]
[1771707902190,0.0136016,68325.0,68320.0,0.00022]
[1771707902396,0.0136016,68324.0,68320.0,0.00022]
[1771707902597,0.07317943,68326.0,68320.0,0.00022]
[1771707902817,0.05699584,68325.0,68320.0,0.00022]
[1771707902969,0.01360281,68324.0,68320.0,0.00022]
[1771707903169,0.04339303,68325.0,68320.0,0.00022]
[1771707903412,0.01360404,68324.0,68320.0,0.00022]
[1771707903645,0.04439303,68325.0,68315.0,0.07318989]
[1771707903775,0.04439303,68325.0,68313.0,0.00022]
[1771707903776,0.04337789,68319.0,68313.0,0.00022]
[1771707906137,0.04337789,68319.0,68313.0,0.07341225]
[1771707906763,0.04337789,68319.0,68313.0,0.07341219]
[1771707908190,0.04337789,68319.0,68314.0,0.07319133]
[1771707912441,0.07318323,68322.0,68314.0,0.07319133]
[1771707913391,0.07318323,68322.0,68315.0,0.07319014]
[1771707913928,0.07418323,68322.0,68315.0,0.07319014]
[1771707914151,0.07318323,68322.0,68315.0,0.07319014]
[1771707915534,0.07418323,68322.0,68315.0,0.07319014]
[1771707915957,0.07318323,68322.0,68315.0,0.07319014]
[1771707916162,0.07418323,68322.0,68315.0,0.07319014]
[1771707919590,0.07318323,68322.0,68315.0,0.07319014]
[1771707920909,0.07338323,68322.0,68315.0,0.07319014]
[1771707921076,0.01361215,68321.0,68316.0,0.07318846]
[1771707921279,0.0002,68322.0,68316.0,0.07318846]
[1771707921481,0.01361468,68321.0,68316.0,0.07318846]
[1771707921701,0.0002,68322.0,68316.0,0.07318846]
[1771707921928,0.01361473,68321.0,68316.0,0.07318846]
[1771707922131,0.0002,68322.0,68316.0,0.07318846]
[1771707922362,0.01361623,68321.0,68316.0,0.07318846]
[1771707922564,0.0002,68322.0,68316.0,0.07318846]
[1771707922765,0.01361632,68321.0,68316.0,0.07318846]
[1771707922962,0.0002,68322.0,68316.0,0.07318846]
[1771707923165,0.01361632,68321.0,68316.0,0.07318846]
[1771707923368,0.0002,68322.0,68316.0,0.07318846]
[1771707923591,0.01361637,68321.0,68316.0,0.07318846]
[1771707923740,0.0002,68322.0,68316.0,0.07318846]
[1771707923942,0.01361637,68321.0,68316.0,0.07318846]
[1771707924138,0.0002,68322.0,68316.0,0.07318846]
[1771707924340,0.01361639,68321.0,68316.0,0.07318846]
[1771707924549,0.0002,68322.0,68316.0,0.07318846]
[1771707924772,0.01361648,68321.0,68316.0,0.07318846]
[1771707925013,0.0002,68322.0,68316.0,0.07318846]
[1771707925208,0.01361644,68321.0,68316.0,0.07318846]
[1771707925433,0.0002,68322.0,68316.0,0.07318846]
[1771707925612,0.01361657,68321.0,68316.0,0.07318846]
[1771707925755,0.0002,68322.0,68316.0,0.07318846]
[1771707925952,0.01361656,68321.0,68316.0,0.07318846]
[1771707926157,0.0002,68322.0,68316.0,0.07318846]
[1771707926355,0.01361661,68321.0,68316.0,0.07318846]
[1771707926557,0.0002,68322.0,68316.0,0.07318846]
[1771707926777,0.0002,68322.0,68314.0,0.00022]
[1771707926778,0.01361663,68321.0,68318.0,0.07318646]
[1771707926972,0.0002,68322.0,68318.0,0.07318646]
[1771707927173,0.01361672,68321.0,68318.0,0.07318646]
[1771707927416,0.0002,68322.0,68318.0,0.07318646]
[1771707927619,0.01361704,68321.0,68318.0,0.07318646]
[1771707927821,0.07317983,68325.0,68318.0,0.07318646]
[1771707928038,0.01361714,68324.0,68318.0,0.07318646]
[1771707928260,0.01361714,68323.0,68318.0,0.07318646]
[1771707928398,0.01361714,68322.0,68318.0,0.07318646]
[1771707928598,0.07317983,68325.0,68318.0,0.07318646]
[1771707928852,0.0136175,68324.0,68318.0,0.07318646]
[1771707929055,0.0136175,68323.0,68318.0,0.07318646]
[1771707929212,0.0136175,68322.0,68318.0,0.07318646]
[1771707929418,0.0136175,68321.0,68318.0,0.07318646]
[1771707929653,0.07317983,68325.0,68318.0,0.07318646]
[1771707929980,0.01361787,68324.0,68318.0,0.07318646]
[1771707930156,0.01361788,68324.0,68318.0,0.07318646]
[1771707930359,0.01361788,68323.0,68318.0,0.07318646]
[1771707930568,0.01361788,68322.0,68318.0,0.07318646]
[1771707930739,0.01361788,68321.0,68318.0,0.07318646]
[1771707930942,0.07317983,68325.0,68318.0,0.07318646]
[1771707931267,0.01361788,68324.0,68318.0,0.07318646]
[1771707931466,0.01361788,68323.0,68318.0,0.07318646]
[1771707931639,0.01361788,68322.0,68318.0,0.07318646]
[1771707931848,0.01361788,68321.0,68318.0,0.07318646]
[1771707932016,0.07317983,68325.0,68318.0,0.07318646]
[1771707932216,0.0136183,68324.0,68318.0,0.07318646]
[1771707932516,0.0136183,68323.0,68318.0,0.07318646]
[1771707932717,0.0136183,68322.0,68318.0,0.07318646]
[1771707932938,0.07317983,68325.0,68318.0,0.07318646]
[1771707933161,0.01361883,68324.0,68318.0,0.07318646]
[1771707933362,0.01361883,68323.0,68318.0,0.07318646]
[1771707933565,0.01361883,68322.0,68318.0,0.07318646]
[1771707933719,0.0002,68322.0,68318.0,0.07318646]
[1771707936284,0.0002,68322.0,68317.0,0.07318615]
[1771707936493,0.0002,68322.0,68318.0,0.07318636]
[1771707936640,0.0440775,68326.0,68318.0,0.07318636]
[1771707936844,0.08679945,68325.0,68318.0,0.07318636]
[1771707937067,0.01361974,68324.0,68318.0,0.07318636]
[1771707939500,0.01361968,68323.0,68318.0,0.07318636]
[1771707939685,0.07317971,68325.0,68318.0,0.07318636]
[1771707939973,0.0136197,68324.0,68318.0,0.07318636]
[1771707940175,0.0136197,68323.0,68318.0,0.07318636]
[1771707940393,0.07317971,68325.0,68318.0,0.07318636]
[1771707940729,0.06428586,68351.0,68315.0,0.00022]
[1771707940730,0.000372,68330.0,68315.0,0.24805384]
[1771707941562,0.07354646,68330.0,68322.0,0.07318187]
[1771707942171,0.0002,68324.0,68322.0,0.07318187]
[1771707943886,0.0002,68324.0,68318.0,0.07318692]
[1771707945663,0.0002,68324.0,68319.0,0.07318602]
[1771707946200,0.0002,68324.0,68316.0,0.07318929]
[1771707946397,0.07329609,68329.0,68323.0,0.07318179]
[1771707946398,0.00012,68329.0,68323.0,0.07318179]
[1771707946826,0.00012,68329.0,68322.0,0.07318262]
[1771707947811,0.00012,68329.0,68325.0,0.07317886]
[1771707948214,0.24896788,68336.0,68315.0,0.00022]
[1771707948215,0.1758,68336.0,68321.0,0.24783384]
[1771707948410,0.07316914,68335.0,68327.0,0.07317661]
[1771707948664,0.07316914,68335.0,68328.0,0.07317641]
[1771707949165,0.07316807,68336.0,68328.0,0.07317641]
[1771707949507,0.0002,68329.0,68328.0,0.07317641]
[1771707953139,0.07316714,68337.0,68329.0,0.07317507]
[1771707954043,0.07316714,68337.0,68330.0,0.07317429]
[1771707954441,0.07332933,68339.0,68330.0,0.07317429]
[1771707954670,0.07332933,68339.0,68331.0,0.07317241]
[1771707954846,0.07332933,68339.0,68323.0,0.24783384]
[1771707954847,0.04319927,68339.0,68323.0,0.24783384]
[1771707955047,0.07316653,68338.0,68325.0,0.29271559]
[1771707955442,0.07316734,68337.0,68329.0,0.07317455]
[1771707956054,0.07316865,68336.0,68329.0,0.07317455]
[1771707957594,0.0002,68337.0,68327.0,0.07317659]
[1771707957747,0.04299589,68336.0,68327.0,0.07317659]
[1771707958545,0.07316894,68335.0,68327.0,0.07317659]
[1771707960243,0.11614301,68335.0,68327.0,0.07317659]
[1771707961380,0.30604787,68336.0,68320.0,0.00016]
[1771707961511,0.33624583,68333.0,68325.0,0.07317904]
[1771707961710,0.33624583,68333.0,68321.0,0.29289142]
[1771707961711,0.04295423,68332.0,68323.0,0.07318179]
[1771707961923,0.04295423,68332.0,68325.0,0.07317904]
[1771707962349,0.04295423,68332.0,68326.0,0.07317854]
[1771707962555,0.04295423,68332.0,68328.0,0.07317594]
[1771707963321,0.0002,68337.0,68331.0,0.07317318]
[1771707963451,0.0002,68337.0,68324.0,0.24783384]
[1771707963658,0.07336695,68337.0,68329.0,0.07317465]
[1771707964500,0.0002,68332.0,68329.0,0.07317465]
[1771707968515,0.07316692,68337.0,68330.0,0.07317422]
[1771707968719,0.07316942,68335.0,68328.0,0.0731764]
[1771707969304,0.07317002,68334.0,68326.0,0.07317813]
[1771707969714,0.07317002,68334.0,68327.0,0.07317734]
[1771707969914,0.07316914,68335.0,68327.0,0.07317734]
[1771707970163,0.07316868,68336.0,68327.0,0.07317751]
[1771707970528,0.07316868,68336.0,68328.0,0.07317557]
[1771707971263,0.0731695,68335.0,68328.0,0.07317557]
[1771707972428,0.0002,68334.0,68328.0,0.07317557]
[1771707973356,0.0002,68334.0,68329.0,0.07317537]
[1771707973559,0.0002,68334.0,68328.0,0.07317557]
[1771707975595,0.0002,68334.0,68329.0,0.07317537]
[1771707979012,0.0002,68334.0,68328.0,0.07317557]
[1771707979212,0.0002,68334.0,68329.0,0.0731745]
[1771707981023,0.0002,68334.0,68330.0,0.07317325]
[1771707981256,0.0002,68334.0,68330.0,0.07317394]
[1771707985635,0.14552729,68334.0,68330.0,0.07317394]
[1771707985966,0.0002,68334.0,68330.0,0.07317394]
[1771707991629,0.0002,68334.0,68329.0,0.07317496]
[1771707991831,0.00058934,68334.0,68329.0,0.07317496]
[1771707993189,0.00058934,68334.0,68329.0,0.07339496]
[1771707995090,0.14091663,68335.0,68329.0,0.07339496]
[1771707995241,0.14103331,68335.0,68329.0,0.07339496]
[1771707999999,0.14103331,68335.0,68321.0,0.0001574]
[1771708000193,0.14103331,68335.0,68313.0,0.41891961]
[1771708000194,0.07317644,68328.0,68318.0,0.07340673]
[1771708000401,0.04253458,68326.0,68319.0,0.07340576]
[1771708000642,0.04253458,68326.0,68320.0,0.07318487]
[1771708000961,0.07317751,68327.0,68319.0,0.00022]
[1771708000962,0.04253458,68327.0,68319.0,0.00022]
[1771708001671,0.04253458,68327.0,68320.0,0.0731848]
[1771708001867,0.04253458,68327.0,68322.0,0.00022]
[1771708005159,0.04353458,68327.0,68322.0,0.00022]
[1771708005555,0.04253458,68327.0,68322.0,0.00022]
[1771708006003,0.04353458,68327.0,68322.0,0.00022]
[1771708006588,0.07317554,68329.0,68322.0,0.07340284]
[1771708006790,0.07317554,68329.0,68322.0,0.07331284]
[1771708006989,0.21837711,68329.0,68322.0,0.07331284]
[1771708007205,0.07317554,68329.0,68322.0,0.07331284]
[1771708007534,0.07333455,68330.0,68322.0,0.07331284]
[1771708009152,0.07433455,68330.0,68322.0,0.07331284]
[1771708009674,0.07317543,68329.0,68322.0,0.07331284]
[1771708009890,0.11895257,68328.0,68322.0,0.00013]
[1771708010293,0.04577576,68328.0,68322.0,0.00013]
[1771708010773,0.04577576,68328.0,68322.0,0.07331275]
[1771708013657,0.04577576,68328.0,68323.0,0.0731817]
[1771708014064,0.04577576,68328.0,68325.0,0.07317883]
[1771708014267,0.00016,68330.0,68325.0,0.07317883]
[1771708014609,0.04593704,68330.0,68325.0,0.07317883]
[1771708015828,0.04593704,68330.0,68324.0,0.07318051]
[1771708016258,0.04622454,68330.0,68324.0,0.07318051]
[1771708017311,0.04622454,68330.0,68323.0,0.07318156]
[1771708018102,0.04622454,68330.0,68324.0,0.07318043]
[1771708019308,0.04622454,68330.0,68325.0,0.07317959]
[1771708020195,0.04642454,68330.0,68325.0,0.07317959]
[1771708021808,0.04633454,68330.0,68325.0,0.07317959]
[1771708024715,0.04633454,68330.0,68323.0,0.07318179]
[1771708025684,0.04633454,68330.0,68324.0,0.07318009]
[1771708026735,0.19150584,68330.0,68324.0,0.07318009]
[1771708028038,0.19150584,68330.0,68325.0,0.07317947]
[1771708028207,0.04633454,68330.0,68325.0,0.07317947]
[1771708029009,0.04633454,68330.0,68324.0,0.07318064]
[1771708029207,0.19158502,68330.0,68324.0,0.07318064]
[1771708029821,0.14525048,68329.0,68324.0,0.07318064]
[1771708030217,0.14529655,68328.0,68324.0,0.07318064]
[1771708030377,0.0002875,68329.0,68324.0,0.07318064]
[1771708031261,0.0002875,68329.0,68325.0,0.07317965]
[1771708033043,0.0002875,68329.0,68326.0,0.0731785]
[1771708033239,0.0002875,68329.0,68325.0,0.07317965]
[1771708033490,0.0002875,68329.0,68324.0,0.07340049]
[1771708034731,0.14558469,68329.0,68324.0,0.07340049]
[1771708034936,0.14529719,68328.0,68324.0,0.07340049]
[1771708035095,0.0002875,68329.0,68324.0,0.07340049]
[1771708035497,0.0002875,68329.0,68324.0,0.07325671]
[1771708035955,0.0002875,68329.0,68325.0,0.07317906]
[1771708036838,0.0002875,68329.0,68325.0,0.07303528]
[1771708037479,0.04594016,68329.0,68325.0,0.07303528]
[1771708038422,0.04594016,68329.0,68324.0,0.07325671]
[1771708041913,0.0002875,68329.0,68324.0,0.07325671]
[1771708042781,0.07317336,68331.0,68324.0,0.07325671]
[1771708042947,0.07317121,68333.0,68324.0,0.07325671]
[1771708043108,0.08679569,68332.0,68324.0,0.07325671]
[1771708043308,0.07317284,68332.0,68324.0,0.07325671]
[1771708043998,0.07317284,68332.0,68325.0,0.07317963]
[1771708046178,0.07317181,68333.0,68324.0,0.07325495]
[1771708046355,0.08679603,68332.0,68325.0,0.07317965]
[1771708046563,0.07317108,68333.0,68325.0,0.07317876]
[1771708046762,0.01362354,68332.0,68324.0,7.622e-05]
[1771708046944,0.01362351,68331.0,68325.0,0.07317965]
[1771708047145,0.07317108,68333.0,68325.0,0.07317965]
[1771708047346,0.01362356,68332.0,68325.0,0.07317965]
[1771708047583,0.07317108,68333.0,68325.0,0.07317965]
[1771708047789,0.01362356,68332.0,68326.0,0.07317848]
[1771708048018,0.07317111,68333.0,68326.0,0.07317848]
[1771708048166,0.01362358,68332.0,68326.0,0.07317848]
[1771708048366,0.0002,68332.0,68326.0,0.07317848]
[1771708051526,0.0002,68332.0,68327.0,0.07317662]
[1771708051829,0.0002,68332.0,68322.0,0.00013]
[1771708051988,0.04555091,68329.0,68322.0,0.07318188]
[1771708052183,0.04555091,68329.0,68323.0,0.07318078]
[1771708054604,0.19087051,68329.0,68323.0,0.07318078]
[1771708054825,0.04555091,68329.0,68323.0,0.07340078]
[1771708055051,0.19087051,68329.0,68323.0,0.07340078]
[1771708055227,0.04555091,68329.0,68323.0,0.07340078]
[1771708055596,0.19087069,68329.0,68323.0,0.07340078]
[1771708056296,0.21849587,68329.0,68323.0,0.00022]
[1771708056421,0.048564,68326.0,68314.0,0.07341127]
[1771708056617,0.048564,68320.0,68314.0,0.07341127]
[1771708056808,0.048564,68320.0,68314.0,0.00022]
[1771708057614,0.048564,68320.0,68314.0,0.07341104]
[1771708058595,0.05121953,68319.0,68314.0,0.00022]
[1771708059223,0.0731853,68320.0,68309.0,0.00022]
[1771708059224,0.05121953,68313.0,68309.0,0.00022]
[1771708059450,0.24055447,68318.0,68309.0,0.00022]
[1771708059613,0.07318964,68316.0,68309.0,0.00022]
[1771708060182,0.07318964,68316.0,68309.0,0.07341664]
[1771708060388,0.07324085,68316.0,68309.0,0.07341664]
[1771708061472,0.07334592,68320.0,68312.0,0.07319284]
[1771708061686,0.07334592,68320.0,68312.0,0.07349218]
[1771708061926,0.07318633,68319.0,68312.0,0.07349218]
[1771708066615,0.07318633,68319.0,68312.0,0.05364947]
[1771708069709,0.07318633,68319.0,68312.0,0.05386947]
[1771708072230,0.07354536,68320.0,68313.0,0.07319197]
[1771708072428,0.07354503,68320.0,68313.0,0.07319197]
[1771708074586,0.0731862,68319.0,68312.0,0.05386947]
[1771708076484,0.0730962,68319.0,68312.0,0.05386947]
[1771708079163,0.0730962,68319.0,68313.0,0.07319249]
[1771708080614,0.0730962,68319.0,68312.0,0.07380254]
[1771708081029,0.07319009,68316.0,68312.0,0.00060934]
[1771708081221,0.07319009,68316.0,68305.0,0.0003421]
[1771708081222,0.0731963,68310.0,68304.0,0.00022]
[1771708081417,0.05113928,68309.0,68304.0,0.00022]
[1771708083691,0.05113928,68309.0,68305.0,0.00022]
[1771708093967,0.0735855,68310.0,68305.0,0.00022]
[1771708093968,0.07319881,68308.0,68305.0,0.00022]
[1771708094170,0.05395597,68307.0,68304.0,0.00022]
[1771708094371,0.05395597,68307.0,68301.0,0.07342528]
[1771708094745,0.05395597,68307.0,68302.0,0.07320416]
[1771708095648,0.07319691,68309.0,68302.0,0.07320416]
[1771708095649,0.00038907,68310.0,68306.0,0.07320001]
[1771708096598,0.0002,68309.0,68306.0,0.07320001]
[1771708097790,0.0002,68309.0,68304.0,0.07342157]
[1771708097963,0.0541178,68309.0,68304.0,0.00022]
[1771708098598,0.0002,68309.0,68304.0,0.00022]
[1771708099351,0.0002,68309.0,68304.0,0.07342212]
[1771708100939,0.0002,68309.0,68304.0,0.00022]
[1771708101453,0.0002,68309.0,68304.0,0.07342181]
[1771708102007,0.29275063,68318.0,68304.0,0.24578982]
[1771708102008,0.0731883,68317.0,68304.0,0.24578982]
[1771708102158,0.21824131,68317.0,68309.0,0.07319606]
[1771708102366,0.12703799,68318.0,68309.0,0.07319606]
[1771708102367,0.07318961,68316.0,68309.0,0.07319606]
[1771708104020,0.07318961,68316.0,68309.0,0.07319651]
[1771708104221,0.07318961,68316.0,68308.0,0.07319606]
[1771708105437,0.07318961,68316.0,68309.0,0.07319666]
[1771708105937,0.07318961,68316.0,68308.0,0.07319606]
[1771708106136,0.14506484,68317.0,68305.0,0.00022]
[1771708106434,0.07319341,68313.0,68305.0,0.07342036]
[1771708107213,0.07319036,68315.0,68307.0,0.0731986]
[1771708107384,0.12698763,68315.0,68307.0,0.0731986]
[1771708107811,0.12698763,68315.0,68308.0,0.07319778]
[1771708108230,0.07319196,68314.0,68307.0,0.0731986]
[1771708109166,0.12698763,68315.0,68307.0,0.0731986]
[1771708109876,0.07319175,68314.0,68307.0,0.0731986]
[1771708110474,0.07319257,68313.0,68307.0,0.00022]
[1771708110681,0.12698763,68315.0,68307.0,0.00022]
[1771708110875,0.05379727,68315.0,68307.0,0.00022]
[1771708111075,0.07319164,68314.0,68307.0,0.07341884]
[1771708111885,0.07319164,68314.0,68307.0,0.00022]
[1771708112386,0.07319164,68314.0,68307.0,0.0734188]
[1771708114097,0.05379727,68315.0,68308.0,0.07319698]
[1771708114432,0.05379727,68315.0,68308.0,0.07319748]
[1771708114642,0.19903375,68315.0,68308.0,0.07319748]
[1771708114837,0.19903375,68315.0,68309.0,0.07319654]
[1771708115086,0.14523648,68315.0,68309.0,0.07319654]
[1771708115286,0.07318944,68316.0,68309.0,0.07319654]
[1771708115454,0.21842483,68316.0,68309.0,0.07319654]
[1771708115677,0.14523539,68315.0,68309.0,0.07319654]
[1771708115869,0.07318944,68316.0,68309.0,0.07319654]
[1771708116269,0.21842483,68316.0,68309.0,0.07319654]
[1771708116470,0.14523539,68315.0,68309.0,0.07319654]
[1771708116698,0.07318944,68316.0,68309.0,0.07319654]
[1771708116935,0.21833383,68316.0,68309.0,0.07319654]
[1771708117146,0.21842479,68315.0,68308.0,0.07319757]
[1771708117303,0.0731904,68315.0,68308.0,0.07319757]
[1771708117631,0.0538338,68318.0,68307.0,0.24578982]
[1771708117632,0.14523385,68316.0,68307.0,0.24578982]
[1771708117777,0.07318829,68317.0,68308.0,0.07319786]
[1771708117979,0.07318829,68317.0,68309.0,0.07319679]
[1771708118196,0.21842442,68317.0,68309.0,0.07319679]
[1771708118413,0.0731906,68315.0,68308.0,0.07319786]
[1771708120298,0.0731906,68315.0,68305.0,0.00022]
[1771708120299,0.07319498,68311.0,68305.0,0.00022]
[1771708120525,0.05356852,68310.0,68305.0,0.00022]
[1771708121038,0.05356852,68310.0,68305.0,0.0734209]
[1771708121436,0.05356852,68310.0,68305.0,0.00022]
[1771708122507,0.05356852,68310.0,68305.0,0.07342107]
[1771708126022,0.23634515,68318.0,68306.0,0.07319792]
[1771708126023,0.05357496,68317.0,68306.0,0.07319792]
[1771708126213,0.07319114,68315.0,68306.0,0.07319792]
[1771708126767,0.07319114,68315.0,68308.0,0.07319765]
[1771708126963,0.21845191,68315.0,68308.0,0.07319765]
[1771708129327,0.21845191,68315.0,68308.0,0.07341765]
[1771708131362,0.07319225,68314.0,68308.0,0.00022]
[1771708131561,0.21845302,68314.0,68308.0,0.00022]
[1771708132448,0.14526077,68314.0,68308.0,0.07341773]
[1771708132740,0.14526077,68313.0,68308.0,0.00022]
[1771708132943,0.07319156,68314.0,68308.0,0.00022]
[1771708135265,0.21853123,68315.0,68308.0,0.07341734]
[1771708135855,0.14534085,68315.0,68309.0,0.07319577]
[1771708136077,0.14534085,68314.0,68310.0,0.07319527]
[1771708136276,0.14534085,68313.0,68309.0,0.07319577]
[1771708136477,0.0733893,68316.0,68309.0,0.07319577]
[1771708136688,0.14533935,68315.0,68309.0,0.07319577]
[1771708136978,0.20156971,68315.0,68309.0,0.07319577]
[1771708139412,0.20156971,68315.0,68309.0,0.07258275]
[1771708142003,0.07319251,68313.0,68308.0,0.00022]
[1771708142171,0.21853286,68314.0,68308.0,0.00022]
[1771708142383,0.05618944,68312.0,68308.0,0.00022]
[1771708142997,0.05618944,68307.0,68301.0,0.00022]
[1771708143173,0.05618944,68307.0,68301.0,0.00060907]
[1771708143577,0.05618944,68307.0,68301.0,0.07381366]
[1771708144298,0.05618944,68307.0,68302.0,0.07320402]
[1771708144861,0.05618944,68307.0,68302.0,0.05320176]
[1771708145403,0.05618944,68307.0,68301.0,0.07381344]
[1771708145583,0.05618944,68307.0,68302.0,0.07320416]
[1771708148977,0.0561528,68314.0,68301.0,0.00060907]
[1771708149182,0.0561528,68314.0,68306.0,0.07319899]
[1771708149498,0.20134872,68314.0,68306.0,0.07319899]
[1771708149672,0.14519592,68314.0,68302.0,0.07320429]
[1771708149872,0.0002,68315.0,68309.0,0.07319582]
[1771708151279,0.14539883,68315.0,68309.0,0.07319582]
[1771708153440,0.0564991,68320.0,68301.0,0.29342626]
[1771708153441,0.17404636,68325.0,68301.0,0.00060907]
[1771708153584,0.01361342,68324.0,68317.0,0.07318717]
[1771708153785,0.07317878,68326.0,68318.0,0.07318683]
[1771708153985,0.01361372,68325.0,68318.0,0.07318683]
[1771708154296,0.07317878,68326.0,68318.0,0.07318683]
[1771708154453,0.01361016,68325.0,68319.0,0.07318579]
[1771708154671,0.07317766,68327.0,68319.0,0.07318579]
[1771708155078,0.0731786,68326.0,68318.0,0.07318524]
[1771708160983,0.0731786,68326.0,68319.0,0.07318549]
[1771708161748,0.0731786,68326.0,68319.0,0.07175938]
[1771708162481,0.0731786,68326.0,68310.0,0.29293432]
[1771708162482,0.0001221,68328.0,68325.0,0.07317948]
[1771708162678,0.0001221,68328.0,68310.0,0.00016]
[1771708162679,0.05624413,68335.0,68328.0,0.07317556]
[1771708162680,0.0001221,68335.0,68328.0,0.07317556]
[1771708162985,0.0001221,68335.0,68329.0,0.07317453]
[1771708163127,0.07329124,68335.0,68328.0,0.07317621]
[1771708163329,0.0001221,68335.0,68328.0,0.07317621]
[1771708163777,0.00018471,68335.0,68328.0,0.07317621]
[1771708163951,0.00018471,68335.0,68329.0,0.0731752]
[1771708165565,0.00018471,68335.0,68327.0,0.07317692]
[1771708165730,0.07335396,68335.0,68327.0,0.07317678]
[1771708166553,0.00018471,68335.0,68328.0,0.07317628]
[1771708168105,0.00018471,68335.0,68329.0,0.07317483]
[1771708168845,0.00018471,68335.0,68328.0,0.07317631]
[1771708169117,0.00018471,68335.0,68327.0,0.0731773]
[1771708169329,0.07317171,68333.0,68326.0,0.07317786]
[1771708169709,0.07317171,68333.0,68325.0,0.07317868]
[1771708169906,0.07355409,68335.0,68327.0,0.0731775]
[1771708170110,0.00038471,68335.0,68321.0,0.29273409]
[1771708170430,0.00038471,68335.0,68330.0,0.07317356]
[1771708175474,0.00038471,68335.0,68329.0,0.07317521]
[1771708176326,0.07317181,68333.0,68321.0,0.29273409]
[1771708176535,0.12945644,68334.0,68322.0,0.29273147]
[1771708176756,0.12945644,68334.0,68320.0,0.00016]
[1771708176757,0.05628444,68334.0,68326.0,0.0731776]
[1771708177289,0.12945463,68334.0,68327.0,0.07317751]
[1771708177477,0.05628444,68334.0,68328.0,0.0731764]
[1771708177654,0.00038471,68335.0,68328.0,0.0731764]
[1771708177799,0.07355401,68335.0,68328.0,0.0731764]
[1771708180422,0.00038471,68335.0,68329.0,0.07317533]
[1771708182283,0.00038471,68335.0,68330.0,0.07317368]
[1771708183587,0.00038471,68335.0,68331.0,0.07317237]
[1771708188091,0.00038471,68335.0,68330.0,0.07317368]
[1771708188092,0.0001221,68342.0,68339.0,0.07316466]
[1771708188289,5.691e-05,68342.0,68340.0,0.07316336]
[1771708189217,5.691e-05,68342.0,68330.0,0.05628401]
[1771708189218,0.05785542,68348.0,68330.0,0.05628401]
[1771708189219,0.23138143,68350.0,68330.0,0.05628401]
[1771708189220,0.17576,68357.0,68352.0,0.07315047]
[1771708189454,0.17576,68357.0,68331.0,0.43903369]